fUST/lending_fUST_20250812
["ID","MTS","AMOUNT","RATE_DAILY","PERIOD"]
[378720823,1754989872119,-325.0,0.0002079,2]
[378720824,1754989872128,-325.0,0.0002079,2]
[378720825,1754989872137,-325.0,0.0002079,2]
[378720826,1754989872147,-325.0,0.0002079,2]
[378720827,1754989872155,-325.0,0.0002079,2]
[378720828,1754989872164,-325.0,0.0002079,2]
[378720829,1754989872173,-325.0,0.0002079,2]
[378720830,1754989872182,-325.0,0.0002079,2]
[378720831,1754989872193,-325.0,0.0002079,2]
[378720832,1754989872202,-325.0,0.0002079,2]
[378720833,1754989872211,-325.0,0.0002079,2]
[378720834,1754989872221,-325.0,0.0002079,2]
[378720835,1754989872230,-325.0,0.0002079,2]
[378720836,1754989872239,-325.0,0.0002079,2]
[378720837,1754989872248,-325.0,0.0002079,2]
[378720838,1754989872257,-325.0,0.0002079,2]
[378720839,1754989872266,-325.0,0.0002079,2]
[378720840,1754989872275,-325.0,0.0002079,2]
[378720841,1754989872285,-325.0,0.0002079,2]
[378720842,1754989872294,-325.0,0.0002079,2]
[378720843,1754989872303,-325.0,0.0002079,2]
[378720844,1754989872311,-325.0,0.0002079,2]
[378720845,1754989872320,-325.0,0.0002079,2]
[378720846,1754989872330,-325.0,0.0002079,2]
[378720847,1754989872339,-325.0,0.0002079,2]
[378720848,1754989872349,-325.0,0.0002079,2]
[378720849,1754989872359,-325.0,0.0002079,2]
[378720850,1754989872370,-325.0,0.0002079,2]
[378720851,1754989872380,-325.0,0.0002079,2]
[378720852,1754989872389,-193.4918716,0.0002079,2]
[378720853,1754989872398,-325.0,0.0002079,2]
[378720854,1754989872407,-329.06662627,0.0002079,2]
[378720855,1754989872416,-325.0,0.0002079,2]
[378720856,1754989872424,-325.0,0.0002079,2]
[378720857,1754989872434,-325.0,0.0002079,2]
[378720858,1754989872444,-325.0,0.0002079,2]
[378720859,1754989872454,-325.0,0.0002079,2]
[378720860,1754989872463,-325.0,0.0002079,2]
[378720861,1754989872474,-325.0,0.0002079,2]
[378720862,1754989872484,-330.73575109,0.0002079,2]
[378720863,1754989872493,-325.0,0.0002079,2]
[378720864,1754989872503,-325.0,0.0002079,2]
[378720865,1754989872512,-160.0,0.0002079,2]
[378720866,1754989872522,-325.0,0.0002079,2]
[378720867,1754989872531,-325.0,0.0002079,2]
[378720868,1754989872541,-325.0,0.0002079,2]
[378720869,1754989872550,-325.0,0.0002079,2]
[378720870,1754989872560,-2000.0,0.000208,2]
[378720871,1754989872569,-676.41425642,0.00020816,2]
[378720872,1754989872578,-1001.53977189,0.00020816,2]
[378720873,1754989872587,-2000.0,0.00020816,2]
[378720874,1754989872598,-450.0,0.00020822,2]
[378720875,1754989872607,-460.0,0.00020825,2]
[378720876,1754989872616,-576.0,0.00020835,2]
[378720877,1754989872625,-2095.32,0.00020835,2]
[378720878,1754989872635,-1918.85,0.00020835,2]
[378720879,1754989872644,-2635.68,0.00020835,2]
[378720880,1754989872654,-1506.4,0.00020835,2]
[378720881,1754989872664,-1237.41,0.00020835,2]
[378720882,1754989872673,-460.0,0.00020835,2]
[378720883,1754989872683,-3087.66,0.00020835,2]
[378720884,1754989872696,-3102.53,0.00020835,2]
[378720885,1754989872706,-460.0,0.00020836,2]
[378720886,1754989872715,-1285.31,0.00020836,2]
[378720887,1754989872723,-1061.43,0.00020836,2]
[378720888,1754989872734,-660.19,0.00020836,2]
[378720889,1754989872743,-703.67,0.00020836,2]
[378720890,1754989872753,-1571.34,0.00020836,2]
[378720891,1754989872764,-479.36,0.00020836,2]
[378720892,1754989872773,-460.0,0.00020836,2]
[378720893,1754989872782,-460.0,0.00020836,2]
[378720894,1754989872792,-460.0,0.00020836,2]
[378720895,1754989872801,-961.98,0.00020836,2]
[378720896,1754989872810,-460.0,0.00020836,2]
[378720897,1754989872819,-596.7,0.00020836,2]
[378720898,1754989872828,-548.06,0.00020836,2]
[378720899,1754989872839,-851.89,0.00020836,2]
[378720900,1754989872848,-460.0,0.00020836,2]
[378720901,1754989872857,-703.0,0.00020836,2]
[378720902,1754989872866,-534.6,0.00020836,2]
[378720903,1754989872876,-1574.67,0.00020836,2]
[378720904,1754989872885,-651.47,0.00020836,2]
[378720905,1754989872895,-460.0,0.00020836,2]
[378720906,1754989872906,-460.0,0.00020836,2]
[378720907,1754989872917,-2172.38,0.00020836,2]
[378720908,1754989872928,-466.79607639,0.00020836,2]
[378720909,1754989872939,-460.0,0.00020836,2]
[378720910,1754989872948,-460.0,0.00020836,2]
[378720911,1754989872957,-460.0,0.00020836,2]
[378720912,1754989872966,-460.0,0.00020836,2]
[378720913,1754989872975,-460.0,0.00020836,2]
[378720914,1754989872985,-460.0,0.00020838,2]
[378720915,1754989872994,-460.0,0.00020838,2]
[378720916,1754989873003,-460.0,0.00020838,2]
[378720917,1754989873012,-460.0,0.00020838,2]
[378720918,1754989873021,-519.91,0.00020838,2]
[378720919,1754989873030,-536.22,0.00020838,2]
[378720920,1754989873039,-460.0,0.00020838,2]
[378720921,1754989873049,-460.0,0.00020838,2]
[378720922,1754989873058,-460.0,0.00020838,2]
[378720923,1754989873066,-460.0,0.00020838,2]
[378720924,1754989873075,-460.0,0.00020838,2]
[378720925,1754989873084,-477.26770397,0.00020838,2]
[378720926,1754989873094,-460.0,0.00020838,2]
[378720927,1754989873103,-550.0,0.00020838,2]
[378720928,1754989873112,-460.0,0.00020838,2]
[378720929,1754989873122,-515.1,0.00020838,2]
[378720930,1754989873131,-1117.38,0.00020838,2]
[378720931,1754989873140,-460.0,0.00020838,2]
[378720932,1754989873149,-460.0,0.00020838,2]
[378720933,1754989873158,-837.98,0.00020838,2]
[378720934,1754989873167,-565.69236258,0.00020838,2]
[378720935,1754989873177,-500.0,0.00020849,2]
[378720936,1754989873186,-3056.0,0.00020849,2]
[378720937,1754989873195,-500.0,0.00020849,2]
[378720938,1754989873204,-1920.60392595,0.00020864,2]
[378720939,1754989873213,-2500.0,0.00020864,2]
[378720940,1754989873223,-1004.46428504,0.00020864,2]
[378720941,1754989873232,-2500.0,0.00020864,2]
[378720942,1754989873241,-848.53751595,0.00020864,2]
[378720943,1754989873250,-2500.0,0.00020864,2]
[378720944,1754989873259,-605.6366604,0.00020903,6]
[378720945,1754989873269,-1300.0,0.00020908,2]
[378720946,1754989873278,-230.0,0.00020945,2]
[378720947,1754989873288,-353.7,0.00020968,2]
[378720948,1754989873296,-200.0,0.00020973,2]
[378720949,1754989873305,-150.0,0.00020973,2]
[378720950,1754989873314,-2464.12856962,0.00021,2]
[378720951,1754989873323,-3090.0,0.00021,2]
[378720952,1754989873332,-8057.71660867,0.00021,5]
[378720953,1754989873341,-157.0,0.00021,4]
[378720954,1754989873350,-157.0,0.00021,4]
[378720955,1754989873359,-511.44,0.00021008,2]
[378720956,1754989873369,-460.0,0.00021008,2]
[378720957,1754989873378,-778.07,0.00021008,2]
[378720958,1754989873387,-695.2,0.00021008,2]
[378720959,1754989873396,-3994.01,0.00021008,2]
[378720960,1754989873406,-607.67,0.00021008,2]
[378720961,1754989873415,-2824.63,0.00021008,2]
[378720962,1754989873424,-496.78,0.00021008,2]
[378720963,1754989873434,-850.45,0.00021008,2]
[378720964,1754989873443,-2881.31,0.00021009,2]
[378720965,1754989873453,-624.47,0.00021009,2]
[378720966,1754989873462,-580.14,0.00021009,2]
[378720967,1754989873472,-1844.43,0.00021009,2]
[378720968,1754989873481,-3780.92,0.00021009,2]
[378720969,1754989873490,-852.8,0.00021009,2]
[378720970,1754989873500,-1219.8,0.00021009,2]
[378720971,1754989873509,-801.24,0.00021009,2]
[378720972,1754989873519,-1272.56,0.00021009,2]
[378720973,1754989873528,-832.96,0.00021009,2]
[378720974,1754989873539,-1059.69,0.00021009,2]
[378720975,1754989873548,-1297.9,0.00021009,2]
[378720976,1754989873557,-1696.21,0.00021009,2]
[378720977,1754989873566,-460.0,0.00021011,2]
[378720978,1754989873575,-535.01,0.00021011,2]
[378720979,1754989873584,-856.74,0.00021011,2]
[378720980,1754989873594,-601.61,0.00021011,2]
[378720981,1754989873603,-622.63,0.00021011,2]
[378720982,1754989873612,-460.0,0.00021011,2]
[378720983,1754989873621,-460.0,0.00021011,2]
[378720984,1754989873630,-460.0,0.00021011,2]
[378720985,1754989873639,-460.0,0.00021011,2]
[378720986,1754989873648,-460.0,0.00021011,2]
[378720987,1754989873658,-582.68,0.00021011,2]
[378720988,1754989873668,-460.0,0.00021011,2]
[378720989,1754989873677,-202.86987689,0.00021011,2]
[378720990,1754989873690,-519.88,0.00021011,2]
[378720991,1754989873699,-913.33,0.00021011,2]
[378720992,1754989873709,-689.99,0.00021011,2]
[378720993,1754989873718,-460.0,0.00021011,2]
[378720994,1754989873729,-460.0,0.00021011,2]
[378720995,1754989873738,-460.0,0.00021011,2]
[378720996,1754989873747,-731.05,0.00021011,2]
[378720997,1754989873757,-460.0,0.00021011,2]
[378720998,1754989873766,-460.0,0.00021011,2]
[378720999,1754989873776,-839.52,0.00021011,2]
[378721000,1754989873785,-980.86,0.00021011,2]
[378721001,1754989873795,-816.4,0.00021011,2]
[378721002,1754989873804,-460.0,0.00021011,2]
[378721003,1754989873813,-575.45,0.00021011,2]
[378721004,1754989873822,-866.6,0.00021011,2]
[378721005,1754989873831,-460.0,0.00021011,2]
[378721006,1754989873840,-638.72,0.00021011,2]
[378721007,1754989873849,-460.0,0.00021011,2]
[378721008,1754989873859,-460.0,0.00021011,2]
[378721009,1754989873868,-1440.43,0.00021011,2]
[378721010,1754989873877,-574.32708225,0.00021011,2]
[378721011,1754989873887,-1053.87,0.00021011,2]
[378721012,1754989873897,-679.08,0.00021011,2]
[378721013,1754989873907,-1390.83,0.00021011,2]
[378721014,1754989873916,-466.54,0.00021011,2]
[378721015,1754989873925,-460.0,0.00021011,2]
[378721016,1754989873934,-698.56,0.00021011,2]
[378721017,1754989873943,-460.0,0.00021011,2]
[378721018,1754989873953,-206.4,0.00021011,2]
[378721019,1754989873962,-600.61,0.00021011,2]
[378721020,1754989873971,-688.97,0.00021011,2]
[378721021,1754989873981,-1382.57,0.00021011,2]
[378721022,1754989873990,-1743.77,0.00021011,2]
[378721023,1754989873999,-9176.97,0.00021011,2]
[378721024,1754989874008,-460.0,0.00021011,2]
[378721025,1754989874017,-880.3,0.00021011,2]
[378721026,1754989874026,-2946.27,0.00021011,2]
[378721027,1754989874035,-297.97848755,0.00021011,2]
[378721028,1754989874045,-598.93,0.00021011,2]
[378721029,1754989874053,-493.88632324,0.00021011,2]
[378721030,1754989874062,-4712.31,0.00021011,2]
[378721031,1754989874071,-2191.98,0.00021011,2]
[378721032,1754989874080,-460.0,0.00021011,2]
[378721033,1754989874089,-460.0,0.00021011,2]
[378721034,1754989874097,-826.58,0.00021011,2]
[378721035,1754989874106,-590.73,0.00021011,2]
[378721036,1754989874116,-460.0,0.00021011,2]
[378721037,1754989874126,-460.0,0.00021011,2]
[378721038,1754989874135,-722.38,0.00021011,2]
[378721039,1754989874145,-771.5,0.00021011,2]
[378721040,1754989874156,-1280.88,0.00021011,2]
[378721041,1754989874166,-460.0,0.00021011,2]
[378721042,1754989874179,-460.0,0.00021011,2]
[378721043,1754989874188,-1003.30284187,0.00021016,2]
[378721044,1754989874197,-2000.0,0.00021016,2]
[378721045,1754989874207,-2000.0,0.00021016,2]
[378721046,1754989874215,-1501.16583946,0.00021068,2]
[378721047,1754989874225,-1000.0,0.00021068,2]
[378721048,1754989874234,-1000.0,0.000211,2]
[378721049,1754989874243,-1000.0,0.000211,2]
[378721050,1754989874251,-576.0,0.00021109,2]
[378721051,1754989874260,-2095.32,0.00021109,2]
[378721052,1754989874269,-1918.85,0.00021109,2]
[378721053,1754989874278,-2635.68,0.00021109,2]
[378721054,1754989874289,-1506.4,0.00021109,2]
[378721055,1754989874297,-1237.41,0.00021109,2]
[378721056,1754989874306,-460.0,0.00021109,2]
[378721057,1754989874316,-3087.66,0.00021109,2]
[378721058,1754989874325,-3102.53,0.00021109,2]
[378721059,1754989874334,-460.0,0.0002111,2]
[378721060,1754989874343,-1285.31,0.0002111,2]
[378721061,1754989874352,-1061.43,0.0002111,2]
[378721062,1754989874361,-660.19,0.0002111,2]
[378721063,1754989874370,-703.67,0.0002111,2]
[378721064,1754989874380,-1571.34,0.0002111,2]
[378721065,1754989874390,-479.36,0.0002111,2]
[378721066,1754989874399,-460.0,0.0002111,2]
[378721067,1754989874408,-460.0,0.0002111,2]
[378721068,1754989874417,-460.0,0.0002111,2]
[378721069,1754989874426,-961.98,0.0002111,2]
[378721070,1754989874435,-460.0,0.0002111,2]
[378721071,1754989874444,-596.7,0.0002111,2]
[378721072,1754989874453,-548.06,0.0002111,2]
[378721073,1754989874461,-851.89,0.0002111,2]
[378721074,1754989874471,-460.0,0.0002111,2]
[378721075,1754989874480,-703.0,0.0002111,2]
[378721076,1754989874488,-534.6,0.0002111,2]
[378721077,1754989874497,-1574.67,0.0002111,2]
[378721078,1754989874507,-651.47,0.0002111,2]
[378721079,1754989874515,-460.0,0.0002111,2]
[378721080,1754989874525,-460.0,0.0002111,2]
[378721081,1754989874534,-2172.38,0.0002111,2]
[378721082,1754989874543,-460.0,0.0002111,2]
[378721083,1754989874553,-460.0,0.0002111,2]
[378721084,1754989874562,-460.0,0.0002111,2]
[378721085,1754989874573,-460.0,0.0002111,2]
[378721086,1754989874582,-460.0,0.0002111,2]
[378721087,1754989874592,-460.0,0.00021112,2]
[378721088,1754989874601,-460.0,0.00021112,2]
[378721089,1754989874610,-577.40324774,0.00021112,2]
[378721090,1754989874619,-460.0,0.00021112,2]
[378721091,1754989874628,-519.91,0.00021112,2]
[378721092,1754989874638,-536.22,0.00021112,2]
[378721093,1754989874647,-460.0,0.00021112,2]
[378721094,1754989874657,-465.08302878,0.00021112,2]
[378721095,1754989874667,-460.0,0.00021112,2]
[378721096,1754989874676,-460.0,0.00021112,2]
[378721097,1754989874687,-460.0,0.00021112,2]
[378721098,1754989874698,-460.0,0.00021112,2]
[378721099,1754989874707,-550.0,0.00021112,2]
[378721100,1754989874716,-460.0,0.00021112,2]
[378721101,1754989874725,-515.1,0.00021112,2]
[378721102,1754989874736,-1117.38,0.00021112,2]
[378721103,1754989874745,-460.0,0.00021112,2]
[378721104,1754989874754,-460.0,0.00021112,2]
[378721105,1754989874765,-837.98,0.00021112,2]
[378721106,1754989874775,-605.6366604,0.00021112,6]
[378721107,1754989874785,-2000.0,0.00021116,2]
[378721108,1754989874794,-2000.0,0.00021116,2]
[378721109,1754989874803,-2086.09791105,0.00021116,2]
[378721110,1754989874947,-2000.0,0.00021116,2]
[378721111,1754989874957,-2000.0,0.00021116,2]
[378721112,1754989874966,-500.0,0.00021123,2]
[378721113,1754989874975,-3056.0,0.00021123,2]
[378721114,1754989874985,-500.0,0.00021123,2]
[378721115,1754989874994,-200.0,0.0002113,2]
[378721116,1754989875003,-500.0,0.00021155,2]
[378721117,1754989875012,-353.7,0.00021158,2]
[378721118,1754989875021,-1360.0,0.000212,4]
[378721119,1754989875031,-500.0,0.00021212,2]
[378721120,1754989875040,-151.0,0.00021273,2]
[378721121,1754989875050,-511.44,0.00021282,2]
[378721122,1754989875058,-460.0,0.00021282,2]
[378721123,1754989875067,-778.07,0.00021282,2]
[378721124,1754989875077,-695.2,0.00021282,2]
[378721125,1754989875086,-3994.01,0.00021282,2]
[378721126,1754989875095,-607.67,0.00021282,2]
[378721127,1754989875104,-2824.63,0.00021282,2]
[378721128,1754989875113,-496.78,0.00021282,2]
[378721129,1754989875122,-850.45,0.00021282,2]
[378721130,1754989875131,-2881.31,0.00021283,2]
[378721131,1754989875140,-624.47,0.00021283,2]
[378721132,1754989875149,-580.14,0.00021283,2]
[378721133,1754989875158,-1844.43,0.00021283,2]
[378721134,1754989875167,-3780.92,0.00021283,2]
[378721135,1754989875176,-852.8,0.00021283,2]
[378721136,1754989875186,-1219.8,0.00021283,2]
[378721137,1754989875195,-801.24,0.00021283,2]
[378721138,1754989875204,-1272.56,0.00021283,2]
[378721139,1754989875213,-832.96,0.00021283,2]
[378721140,1754989875222,-1059.69,0.00021283,2]
[378721141,1754989875232,-1297.9,0.00021283,2]
[378721142,1754989875241,-1696.21,0.00021283,2]
[378721143,1754989875251,-460.0,0.00021285,2]
[378721144,1754989875260,-535.01,0.00021285,2]
[378721145,1754989875270,-856.74,0.00021285,2]
[378721146,1754989875279,-601.61,0.00021285,2]
[378721147,1754989875289,-622.63,0.00021285,2]
[378721148,1754989875297,-275.84794665,0.00021285,2]
[378721149,1754989875307,-460.0,0.00021285,2]
[378721150,1754989875316,-460.0,0.00021285,2]
[378721151,1754989875326,-460.0,0.00021285,2]
[378721152,1754989875335,-460.0,0.00021285,2]
[378721153,1754989875344,-582.68,0.00021285,2]
[378721154,1754989875353,-460.0,0.00021285,2]
[378721155,1754989875362,-519.88,0.00021285,2]
[378721156,1754989875372,-913.33,0.00021285,2]
[378721157,1754989875381,-689.99,0.00021285,2]
[378721158,1754989875390,-460.0,0.00021285,2]
[378721159,1754989875399,-460.0,0.00021285,2]
[378721160,1754989875409,-460.0,0.00021285,2]
[378721161,1754989875419,-731.05,0.00021285,2]
[378721162,1754989875428,-460.0,0.00021285,2]
[378721163,1754989875438,-460.0,0.00021285,2]
[378721164,1754989875447,-839.52,0.00021285,2]
[378721165,1754989875458,-980.86,0.00021285,2]
[378721166,1754989875466,-816.4,0.00021285,2]
[378721167,1754989875476,-460.0,0.00021285,2]
[378721168,1754989875487,-575.45,0.00021285,2]
[378721169,1754989875497,-866.6,0.00021285,2]
[378721170,1754989875506,-460.0,0.00021285,2]
[378721171,1754989875516,-638.72,0.00021285,2]
[378721172,1754989875526,-460.0,0.00021285,2]
[378721173,1754989875537,-460.0,0.00021285,2]
[378721174,1754989875546,-1440.43,0.00021285,2]
[378721175,1754989875555,-1053.87,0.00021285,2]
[378721176,1754989875565,-679.08,0.00021285,2]
[378721177,1754989875574,-1390.83,0.00021285,2]
[378721178,1754989875583,-466.54,0.00021285,2]
[378721179,1754989875592,-460.0,0.00021285,2]
[378721180,1754989875601,-698.56,0.00021285,2]
[378721181,1754989875611,-460.0,0.00021285,2]
[378721182,1754989875620,-600.61,0.00021285,2]
[378721183,1754989875630,-688.97,0.00021285,2]
[378721184,1754989875640,-1382.57,0.00021285,2]
[378721185,1754989875649,-1743.77,0.00021285,2]
[378721186,1754989875658,-9176.97,0.00021285,2]
[378721187,1754989875668,-460.0,0.00021285,2]
[378721188,1754989875678,-880.3,0.00021285,2]
[378721189,1754989875691,-2946.27,0.00021285,2]
[378721190,1754989875727,-598.93,0.00021285,2]
[378721191,1754989875739,-4712.31,0.00021285,2]
[378721192,1754989875749,-2191.98,0.00021285,2]
[378721193,1754989875759,-460.0,0.00021285,2]
[378721194,1754989875769,-460.0,0.00021285,2]
[378721195,1754989875779,-826.58,0.00021285,2]
[378721196,1754989875789,-590.73,0.00021285,2]
[378721197,1754989875800,-460.0,0.00021285,2]
[378721198,1754989875810,-460.0,0.00021285,2]
[378721199,1754989875819,-722.38,0.00021285,2]
[378721200,1754989875829,-771.5,0.00021285,2]
[378721201,1754989875838,-1280.88,0.00021285,2]
[378721202,1754989875847,-460.0,0.00021285,2]
[378721203,1754989875857,-460.0,0.00021285,2]
[378721204,1754989875866,-81597.01011727,0.000213,5]
[378721205,1754989875875,-756.6374111,0.00021321,6]
[378721206,1754989875884,-160.0,0.00021323,6]
[378721207,1754989875894,-2500.0,0.00021364,2]
[378721208,1754989875903,-550.0,0.0002137,2]
[378721209,1754989875913,-560.0,0.00021373,2]
[378721210,1754989875922,-576.0,0.00021383,2]
[378721211,1754989875931,-2095.32,0.00021383,2]
[378721212,1754989875941,-1918.85,0.00021383,2]
[378721213,1754989875950,-2635.68,0.00021383,2]
[378721214,1754989875959,-1506.4,0.00021383,2]
[378721215,1754989875968,-1237.41,0.00021383,2]
[378721216,1754989875977,-460.0,0.00021383,2]
[378721217,1754989875986,-3087.66,0.00021383,2]
[378721218,1754989875995,-3102.53,0.00021383,2]
[378721219,1754989876005,-460.0,0.00021384,2]
[378721220,1754989876014,-1285.31,0.00021384,2]
[378721221,1754989876023,-1061.43,0.00021384,2]
[378721222,1754989876032,-660.19,0.00021384,2]
[378721223,1754989876043,-703.67,0.00021384,2]
[378721224,1754989876053,-1571.34,0.00021384,2]
[378721225,1754989876062,-479.36,0.00021384,2]
[378721226,1754989876072,-460.0,0.00021384,2]
[378721227,1754989876081,-460.0,0.00021384,2]
[378721228,1754989876090,-460.0,0.00021384,2]
[378721229,1754989876099,-961.98,0.00021384,2]
[378721230,1754989876108,-460.0,0.00021384,2]
[378721231,1754989876117,-596.7,0.00021384,2]
[378721232,1754989876126,-548.06,0.00021384,2]
[378721233,1754989876134,-851.89,0.00021384,2]
[378721234,1754989876143,-460.0,0.00021384,2]
[378721235,1754989876153,-703.0,0.00021384,2]
[378721236,1754989876162,-534.6,0.00021384,2]
[378721237,1754989876171,-1574.67,0.00021384,2]
[378721238,1754989876181,-651.47,0.00021384,2]
[378721239,1754989876191,-460.0,0.00021384,2]
[378721240,1754989876201,-240.5890184,0.00021384,2]
[378721241,1754989876210,-2172.38,0.00021384,2]
[378721242,1754989876221,-460.0,0.00021384,2]
[378721243,1754989876231,-460.0,0.00021384,2]
[378721244,1754989876240,-460.0,0.00021384,2]
[378721245,1754989876250,-460.0,0.00021384,2]
[378721246,1754989876259,-460.0,0.00021384,2]
[378721247,1754989876269,-460.0,0.00021386,2]
[378721248,1754989876278,-460.0,0.00021386,2]
[378721249,1754989876291,-460.0,0.00021386,2]
[378721250,1754989876300,-519.91,0.00021386,2]
[378721251,1754989876309,-536.22,0.00021386,2]
[378721252,1754989876318,-460.0,0.00021386,2]
[378721253,1754989876328,-460.0,0.00021386,2]
[378721254,1754989876337,-460.0,0.00021386,2]
[378721255,1754989876346,-460.0,0.00021386,2]
[378721256,1754989876355,-375.34549564,0.00021386,2]
[378721257,1754989876363,-550.0,0.00021386,2]
[378721258,1754989876372,-460.0,0.00021386,2]
[378721259,1754989876382,-515.1,0.00021386,2]
[378721260,1754989876391,-1117.38,0.00021386,2]
[378721261,1754989876401,-460.0,0.00021386,2]
[378721262,1754989876410,-400.48438932,0.00021386,2]
[378721263,1754989876419,-837.98,0.00021386,2]
[378721264,1754989876428,-216.1545534,0.00021397,2]
[378721265,1754989876438,-3056.0,0.00021397,2]
[378721266,1754989876446,-500.0,0.00021397,2]
[378721267,1754989876455,-3000.0,0.00021412,2]
[378721268,1754989876465,-3000.0,0.00021412,2]
[378721269,1754989876474,-3000.0,0.00021412,2]
[378721270,1754989876483,-12578.15815654,0.000215,2]
[378721271,1754989876492,-400.0,0.00021521,2]
[378721272,1754989876501,-250.0,0.00021521,2]
[378721273,1754989876510,-511.44,0.00021556,2]
[378721274,1754989876519,-460.0,0.00021556,2]
[378721275,1754989876528,-778.07,0.00021556,2]
[378721276,1754989876540,-695.2,0.00021556,2]
[378721277,1754989876549,-3994.01,0.00021556,2]
[378721278,1754989876558,-607.67,0.00021556,2]
[378721279,1754989876568,-2824.63,0.00021556,2]
[378721280,1754989876577,-496.78,0.00021556,2]
[378721281,1754989876586,-2881.31,0.00021557,2]
[378721282,1754989876595,-624.47,0.00021557,2]
[378721283,1754989876605,-580.14,0.00021557,2]
[378721284,1754989876614,-1844.43,0.00021557,2]
[378721285,1754989876623,-3780.92,0.00021557,2]
[378721286,1754989876633,-852.8,0.00021557,2]
[378721287,1754989876643,-1219.8,0.00021557,2]
[378721288,1754989876653,-801.24,0.00021557,2]
[378721289,1754989876662,-1272.56,0.00021557,2]
[378721290,1754989876671,-832.96,0.00021557,2]
[378721291,1754989876680,-1059.69,0.00021557,2]
[378721292,1754989876694,-1297.9,0.00021557,2]
[378721293,1754989876703,-1696.21,0.00021557,2]
[378721294,1754989876712,-460.0,0.00021559,2]
[378721295,1754989876722,-535.01,0.00021559,2]
[378721296,1754989876734,-856.74,0.00021559,2]
[378721297,1754989876743,-601.61,0.00021559,2]
[378721298,1754989876752,-622.63,0.00021559,2]
[378721299,1754989876762,-460.0,0.00021559,2]
[378721300,1754989876770,-460.0,0.00021559,2]
[378721301,1754989876780,-460.0,0.00021559,2]
[378721302,1754989876791,-460.0,0.00021559,2]
[378721303,1754989876801,-582.68,0.00021559,2]
[378721304,1754989876810,-460.0,0.00021559,2]
[378721305,1754989876819,-519.88,0.00021559,2]
[378721306,1754989876828,-913.33,0.00021559,2]
[378721307,1754989876837,-689.99,0.00021559,2]
[378721308,1754989876846,-460.0,0.00021559,2]
[378721309,1754989876855,-460.0,0.00021559,2]
[378721310,1754989876865,-460.0,0.00021559,2]
[378721311,1754989876875,-731.05,0.00021559,2]
[378721312,1754989876884,-460.0,0.00021559,2]
[378721313,1754989876893,-460.0,0.00021559,2]
[378721314,1754989876902,-839.52,0.00021559,2]
[378721315,1754989876912,-980.86,0.00021559,2]
[378721316,1754989876921,-816.4,0.00021559,2]
[378721317,1754989876930,-460.0,0.00021559,2]
[378721318,1754989876939,-575.45,0.00021559,2]
[378721319,1754989876949,-866.6,0.00021559,2]
[378721320,1754989876958,-460.0,0.00021559,2]
[378721321,1754989876967,-638.72,0.00021559,2]
[378721322,1754989876976,-460.0,0.00021559,2]